[Event "Final GP Rapid TOP 16 2019"]
[Site "Khanty-Mansijsk"]
[Date "2019.12.03"]
[Round "11.6"]
[White "Moiseenko, Vadim"]
[Black "Potapov, Pavel"]
[Result "1/2-1/2"]
[ECO "B31"]
[WhiteElo "2532"]
[BlackElo "2489"]
[Annotator "ChessBase"]
[PlyCount "106"]
[EventDate "2019.12.01"]
[EventType "tourn"]
[EventCountry "RUS"]
[SourceTitle "playchess.com"]
[Source "ChessBase"]
[SourceQuality "1"]
[TimeControl "900+10"]

1. e4 {[%emt 0:00:00]} c5 {[%emt 0:00:00]} 2. Nf3 {[%emt 0:00:00]} Nc6 {[%emt 0:00:00]} 3. Bb5 {[%emt 0:00:15]} g6 {[%emt 0:00:00]} 4. Bxc6 {[%emt 0:00:17]} bxc6 {[%emt 0:00:01]} 5. O-O {[%emt 0:00:04]} Bg7 {[%emt 0:00:02]} 6. Re1 {[%emt 0:00:06]} Nh6 {[%emt 0:00:29]} 7. d3 {[%emt 0:00:13]} f6 {[%emt 0:00:45]} 8. a3 {[%emt 0:01:41]} Nf7 {[%emt 0:01:52]} 9. Be3 {[%emt 0:00:24]} d6 {[%emt 0:00:06]} 10. b4 {[%emt 0:00:13]} f5 {[%emt 0:01:16]} 11. c3 {[%emt 0:00:11]} fxe4 {[%emt 0:00:43]} 12. dxe4 {[%emt 0:00:02]} cxb4 {[%emt 0:00:12]} 13. axb4 {[%emt 0:00:08]} Qc7 {[%emt 0:00:41]} 14. Qb3 {[%emt 0:00:14]} O-O {[%emt 0:01:38]} 15. Nbd2 {[%emt 0:00:55]} Kh8 {[%emt 0:00:36]} 16. Ra3 {[%emt 0:00:37]} a6 {[%emt 0:00:23]} 17. Rd1 {[%emt 0:03:16]} Rb8 {[%emt 0:00:24]} 18. h3 {[%emt 0:01:08]} Nd8 {[%emt 0:01:23]} 19. Nd4 {[%emt 0:01:29]} e5 {[%emt 0:03:28]} 20. Ne2 {[%emt 0:00:02]} c5 {[%emt 0:00:52]} 21. Qc4 {[%emt 0:01:50]} Bd7 {[%emt 0:00:21]} 22. Ng3 {[%emt 0:01:10]} Bb5 {[%emt 0:00:05]} 23. Qd5 {[%emt 0:00:43]} cxb4 {[%emt 0:00:52]} 24. cxb4 {[%emt 0:00:01]} Qc6 {[%emt 0:00:11]} 25. Nb1 {[%emt 0:01:00]} Qxd5 {[%emt 0:00:05]} 26. Rxd5 {[%emt 0:00:01]} Nf7 {[%emt 0:00:09]} 27. Nc3 {[%emt 0:00:10]} Bc4 {[%emt 0:00:07]} 28. Ra4 {[%emt 0:00:43]} Bb3 {[%emt 0:00:49]} 29. Rxa6 {[%emt 0:00:04]} Rxb4 {[%emt 0:00:39]} 30. Rd2 {[%emt 0:00:09]} Bc4 {[%emt 0:00:36]} 31. Ra7 {[%emt 0:00:11]} Kg8 {[%emt 0:00:24]} 32. Nd5 {[%emt 0:00:24]} Bxd5 {[%emt 0:00:06]} 33. Rxd5 {[%emt 0:00:02]} Rfb8 {[%emt 0:00:04]} 34. Rd1 {[%emt 0:00:42]} R4b7 {[%emt 0:00:10]} 35. Rda1 {[%emt 0:00:07]} Bf6 {[%emt 0:00:15]} 36. Nf1 {[%emt 0:00:53]} Bg5 {[%emt 0:00:09]} 37. R7a6 {[%emt 0:00:59]} Rb1 {[%emt 0:00:38]} 38. Ba7 {[%emt 0:00:31]} Rxa1 {[%emt 0:00:25]} 39. Rxa1 {[%emt 0:00:02]} Ra8 {[%emt 0:00:02]} 40. Bd4 {[%emt 0:00:24]} Rxa1 {[%emt 0:00:04]} 41. Bxa1 {[%emt 0:00:11]} Nd8 {[%emt 0:00:09]} 42. g3 {[%emt 0:00:04]} Kf7 {[%emt 0:00:02]} 43. Kg2 {[%emt 0:00:07]} Ke6 {[%emt 0:00:01]} 44. Kf3 {[%emt 0:00:05]} Nc6 {[%emt 0:00:25]} 45. Bc3 {[%emt 0:00:02]} d5 {[%emt 0:00:18]} 46. exd5+ {[%emt 0:00:02]} Kxd5 {[%emt 0:00:01]} 47. h4 {[%emt 0:00:05]} Bc1 {[%emt 0:00:12]} 48. Bd2 {[%emt 0:00:08]} Bxd2 {[%emt 0:00:16]} 49. Nxd2 {[%emt 0:00:01]} h5 {[%emt 0:00:06]} 50. Ke3 {[%emt 0:00:16]} Nd4 {[%emt 0:00:06]} 51. Kd3 {[%emt 0:00:08]} Nc6 {[%emt 0:00:17]} 52. Ke3 {[%emt 0:00:21]} Nd4 {[%emt 0:00:01]} 53. Kd3 {[%emt 0:00:01]} Nc6 {Ke4+} 1/2-1/2

[Event "Final GP Rapid TOP 16 2019"]
[Site "Khanty-Mansijsk"]
[Date "2019.12.03"]
[Round "12.7"]
[White "Maltsevskaya, Aleksandra"]
[Black "Pridorozhni, Aleksei"]
[Result "1/2-1/2"]
[ECO "B40"]
[WhiteElo "2332"]
[BlackElo "2602"]
[Annotator "RC"]
[PlyCount "94"]
[EventDate "2019.12.01"]
[EventType "tourn"]
[EventCountry "RUS"]
[SourceTitle "playchess.com"]
[Source "ChessBase"]
[SourceQuality "1"]
[TimeControl "900+10"]

1. e4 {[%emt 0:00:00]} c5 {[%emt 0:00:00]} 2. Nf3 {[%emt 0:00:00]} e6 {[%emt 0:00:00]} 3. g3 {[%emt 0:00:01]} d5 {[%emt 0:00:00]} 4. exd5 {[%emt 0:00:05]} exd5 {[%emt 0:00:00]} 5. Bg2 {[%emt 0:00:09]} Qe7+ {[%emt 0:00:02]} 6. Qe2 {[%emt 0:00:15]} Qxe2+ {[%emt 0:00:04]} 7. Kxe2 {[%emt 0:00:02]} Nc6 {[%emt 0:00:01]} 8. Re1 {[%emt 0:00:08]} h6 {[%emt 0:00:04]} 9. Kf1+ {[%emt 0:00:11]} Be6 {[%emt 0:00:03]} 10. b3 {[%emt 0:00:45]} Nf6 {[%emt 0:00:14]} 11. Bb2 {[%emt 0:00:01]} Be7 {[%emt 0:00:04]} 12. d4 {[%emt 0:00:13]} c4 {[%emt 0:00:37]} 13. Ne5 {[%emt 0:00:41]} Nxe5 {[%emt 0:01:34]} 14. dxe5 {[%emt 0:00:02]} Nd7 {[%emt 0:00:02]} 15. bxc4 {[%emt 0:03:10]} dxc4 {[%emt 0:00:02]} 16. Nc3 {[%emt 0:01:21]} O-O {[%emt 0:00:34]} 17. Nd5 {[%emt 0:00:25]} Bc5 {[%emt 0:00:36]} 18. Rad1 {[%emt 0:00:39]} Rad8 {[%emt 0:02:08]} 19. Bd4 {[%emt 0:02:18]} b6 {[%emt 0:00:55]} 20. f4 {[%emt 0:01:07]} g6 {[%emt 0:00:30]} 21. Rd2 {[%emt 0:00:52]} Kg7 {[%emt 0:00:04]} 22. Nc7 {[%emt 0:01:10]} Bxd4 {[%emt 0:00:47]} 23. Nxe6+ {[%emt 0:00:35]} fxe6 {[%emt 0:00:02]} 24. Rxd4 {[%emt 0:00:01]} Nc5 {[%emt 0:00:02]} 25. Red1 {[%emt 0:01:02]} Rxd4 {[%emt 0:00:47]} 26. Rxd4 {[%emt 0:00:01]} c3 {[%emt 0:00:04]} 27. Ke2 {[%emt 0:00:39]} g5 {[%emt 0:00:21]} 28. Ke3 {[%emt 0:00:18]} gxf4+ {[%emt 0:00:02]} 29. gxf4 {[%emt 0:00:02]} Kf7 {[%emt 0:00:02]} 30. Rc4 {[%emt 0:00:39]} Rg8 {[%emt 0:00:03]} 31. Bf1 {[%emt 0:01:14]} Rg1 {[%emt 0:00:38]} 32. Kf2 {[%emt 0:00:09]} Rg8 {[%emt 0:00:02]} 33. Ke3 {[%emt 0:00:09]} h5 {[%emt 0:01:22]} 34. Rxc3 {[%emt 0:01:37]} h4 {[%emt 0:00:03]} 35. Rc4 {[%emt 0:00:27]} Kg6 {[%emt 0:00:04]} 36. Rd4 {[%emt 0:00:10]} Kh5 {[%emt 0:00:04]} 37. Be2+ {[%emt 0:00:06]} Kh6 {[%emt 0:00:01]} 38. Kf2 {[%emt 0:00:18]} Kg6 {[%emt 0:00:21]} 39. Bf1 {[%emt 0:00:08]} Rc8 {[%emt 0:00:11]} 40. Rd6 {[%emt 0:00:11]} Kf7 {[%emt 0:00:07]} 41. Ke3 {[%emt 0:00:06]} Ke7 {[%emt 0:00:20]} 42. Bh3 {[%emt 0:00:12]} Rf8 {[%emt 0:00:11]} 43. Bg4 {[%emt 0:00:11]} Rg8 {[%emt 0:00:07]} 44. h3 {[%emt 0:00:08]} Rf8 {[%emt 0:00:02]} 45. Rc6 {[%emt 0:00:16]} Kd7 {[%emt 0:00:03]} 46. Rd6+ {[%emt 0:00:01]} Ke7 {[%emt 0:00:01]} 47. Rc6 {[%emt 0:00:08]} Kd7 {[%emt 0:00:08]} 1/2-1/2

[Event "Final GP Rapid TOP 16 2019"]
[Site "Khanty-Mansijsk"]
[Date "2019.12.03"]
[Round "14.8"]
[White "Nesterov, Arseniy"]
[Black "Pridorozhni, Aleksei"]
[Result "0-1"]
[ECO "A40"]
[WhiteElo "2489"]
[BlackElo "2602"]
[Annotator "RC"]
[PlyCount "84"]
[EventDate "2019.12.01"]
[EventType "tourn"]
[EventCountry "RUS"]
[SourceTitle "playchess.com"]
[Source "ChessBase"]
[SourceQuality "1"]
[TimeControl "900+10"]

1. d4 {[%emt 0:00:00]} e6 {[%emt 0:00:00]} 2. c4 {[%emt 0:00:00]} f5 {[%emt 0:00:00]} 3. Nf3 {[%emt 0:00:02]} Nf6 {[%emt 0:00:00]} 4. g3 {[%emt 0:00:05]} b6 {[%emt 0:00:02]} 5. Bg2 {[%emt 0:00:05]} Bb7 {[%emt 0:00:04]} 6. O-O {[%emt 0:00:03]} a5 {[%emt 0:00:23]} 7. d5 {[%emt 0:00:37]} exd5 {[%emt 0:00:02]} 8. Nd4 {[%emt 0:00:08]} Nc6 {[%emt 0:00:02]} 9. cxd5 {[%emt 0:00:32]} Nxd4 {[%emt 0:00:02]} 10. Qxd4 {[%emt 0:00:02]} Bd6 {[%emt 0:00:02]} 11. Nc3 {[%emt 0:00:53]} O-O {[%emt 0:00:10]} 12. Bf4 {[%emt 0:00:44]} Ne8 {[%emt 0:00:10]} 13. Nb5 {[%emt 0:01:42]} Bxf4 {[%emt 0:00:06]} 14. Qxf4 {[%emt 0:00:40]} Ba6 {[%emt 0:00:03]} 15. Nd4 {[%emt 0:00:07]} Nd6 {[%emt 0:00:05]} 16. Rfc1 {[%emt 0:00:04]} Rc8 {[%emt 0:00:05]} 17. Rc2 {[%emt 0:00:15]} g5 {[%emt 0:00:43]} 18. Qd2 {[%emt 0:00:30]} f4 {[%emt 0:00:08]} 19. Rac1 {[%emt 0:00:26]} h6 {[%emt 0:00:40]} 20. e4 {[%emt 0:00:35]} fxe3 {[%emt 0:00:27]} 21. Qxe3 {[%emt 0:00:04]} Qf6 {[%emt 0:00:13]} 22. h3 {[%emt 0:01:04]} Rce8 {[%emt 0:00:12]} 23. Qc3 {[%emt 0:02:54]} Ne4 {[%emt 0:00:06]} 24. Bxe4 {[%emt 0:00:02]} Rxe4 {[%emt 0:00:01]} 25. Nb3 {[%emt 0:02:23]} a4 {[%emt 0:00:25]} 26. Qxf6 {[%emt 0:01:22]} Rxf6 {[%emt 0:00:02]} 27. Na1 {[%emt 0:00:13]} Rd4 {[%emt 0:00:40]} 28. Rxc7 {[%emt 0:01:16]} Rxd5 {[%emt 0:00:29]} 29. Nc2 {[%emt 0:01:17]} Rd2 {[%emt 0:00:09]} 30. Nb4 {[%emt 0:00:11]} Bb5 {[%emt 0:00:05]} 31. R1c2 {[%emt 0:00:44]} Rfxf2 {[%emt 0:00:26]} 32. Rxd2 {[%emt 0:00:02]} Rxd2 {[%emt 0:00:02]} 33. Rb7 {[%emt 0:00:44]} Rxb2 {[%emt 0:00:17]} 34. a3 {[%emt 0:00:01]} Bc6 {[%emt 0:00:28]} 35. Rxb6 {[%emt 0:00:06]} Rg2+ {[%emt 0:00:03]} 36. Kf1 {[%emt 0:00:25]} Rxg3 {[%emt 0:00:03]} 37. Nxc6 {[%emt 0:00:08]} dxc6 {[%emt 0:00:01]} 38. Rxc6 {[%emt 0:00:06]} Rxh3 {[%emt 0:00:03]} 39. Kg2 {[%emt 0:00:05]} Rh4 {[%emt 0:00:07]} 40. Kg3 {[%emt 0:00:11]} Kg7 {[%emt 0:00:02]} 41. Ra6 {[%emt 0:00:06]} Rc4 {[%emt 0:00:03]} 42. Kg2 {[%emt 0:00:02]} h5 {[%emt 0:00:04]} 0-1